bitfinex-derivatives/quotes_ETHF0:USTF0_20250507
["timestamp","ask_amount","ask_price","bid_price","bid_amount"]
[1746650671254,0.8831,1792.9,1792.8,2.7986]
[1746650671452,1.99844,1792.9,1792.8,2.7986]
[1746650671761,0.8831,1792.9,1792.8,2.7986]
[1746650671952,1.99844,1792.9,1792.8,2.7986]
[1746650673363,4.1018,1793.1,1793.0,1.11528]
[1746650673550,1.11528,1793.0,1792.9,2.81339]
[1746650673753,1.11528,1793.0,1792.9,1.11529]
[1746650676161,1.1154,1792.8,1792.7,5.47444]
[1746650676554,5.21708,1793.1,1793.0,1.11528]
[1746650678462,1.11528,1793.0,1792.9,2.76921]
[1746650681169,5.21705,1793.1,1793.0,1.11528]
[1746650681361,5.21705,1793.1,1793.0,2.87598]
[1746650681967,0.8322,1793.2,1793.1,1.11521]
[1746650682168,1.98159,1793.3,1793.2,1.11515]
[1746650682368,0.8665,1793.3,1793.2,1.97415]
[1746650682666,2.00387,1793.4,1793.3,1.11509]
[1746650682966,2.00387,1793.4,1793.3,2.87579]
[1746650683468,0.8888,1793.4,1793.3,2.87579]
[1746650683671,5.18932,1793.5,1793.4,1.11503]
[1746650683866,5.18932,1793.5,1793.4,2.80143]
[1746650684764,5.18932,1793.5,1793.4,1.6864]
[1746650684957,1.11515,1793.2,1793.1,1.6864]
[1746650685161,1.11515,1793.2,1793.1,2.80157]
[1746650685666,1.11515,1793.2,1793.1,43.60157]
[1746650685867,2.73875,1793.2,1793.1,43.60157]
[1746650686467,2.73875,1793.2,1793.1,2.80157]
[1746650686668,2.73875,1793.2,1793.1,1.11517]
[1746650687767,1.11528,1793.1,1793.0,1.11524]
[1746650687969,3.67618,1793.1,1793.0,1.11524]
[1746650688968,1.93938,1793.1,1793.0,1.11524]
[1746650689269,1.93938,1793.1,1793.0,2.83804]
[1746650689665,0.8241,1793.1,1793.0,2.83804]
[1746650689861,0.8636,1793.3,1793.2,1.11515]
[1746650690370,1.97869,1793.3,1793.2,1.85980458]
[1746650690668,1.97869,1793.3,1793.2,1.11515]
[1746650691357,0.8636,1793.3,1793.2,1.11515]
[1746650691966,1.97869,1793.3,1793.2,1.11515]
[1746650692167,3.68459,1793.3,1793.2,1.11515]
[1746650699870,2.82099,1793.3,1793.2,1.11515]
[1746650700069,1.7059,1793.3,1793.2,1.85966506]
[1746650700270,2.82099,1793.3,1793.2,1.85966506]
[1746650700574,2.82099,1793.3,1793.2,1.11515]
[1746650701480,1.11515,1793.2,1793.1,1.6447]
[1746650701683,1.11521,1793.1,1793.0,1.11526]
[1746650701872,5.99553,1793.3,1793.0,1.11526]
[1746650701873,4.32293,1793.3,1793.2,1.11515]
[1746650702177,3.65725,1793.5,1793.4,1.11503]
[1746650702178,4.0775,1793.5,1793.4,1.11503]
[1746650702478,13.90720872,1793.8,1793.5,5.57469]
[1746650702479,11.12023872,1793.8,1793.5,5.57469]
[1746650702677,11.12023872,1793.8,1793.7,4.32264]
[1746650702977,9.64551157,1793.8,1793.7,5.06714909]
[1746650703180,9.64551157,1793.8,1793.7,6.82414909]
[1746650703376,9.64551157,1793.8,1793.7,7.66814909]
[1746650703578,9.64551157,1793.8,1793.7,8.38148373]
[1746650703975,9.64551157,1793.8,1793.7,7.66814909]
[1746650704473,10.76029157,1793.8,1793.7,6.55330909]
[1746650704671,10.76029157,1793.8,1793.7,5.70930909]
[1746650704882,12.51649157,1793.8,1793.7,5.70990873]
[1746650705078,12.51649157,1793.8,1793.4,1.115]
[1746650705079,14.60951157,1793.8,1793.4,1.115]
[1746650705377,14.60951157,1793.8,1793.3,6.0602]
[1746650705378,1.11503,1793.4,1793.3,6.0602]
[1746650705583,1.11503,1793.4,1793.3,0.74500344]
[1746650705781,1.11503,1793.4,1793.3,2.38380344]
[1746650705983,1.11503,1793.4,1793.3,3.49889344]
[1746650706282,1.11503,1793.4,1793.3,2.38346134]
[1746650706484,1.11509,1793.3,1793.2,4.371]
[1746650706672,1.11515,1793.2,1793.1,6.0098]
[1746650706876,1.11515,1793.2,1793.1,7.86968573]
[1746650707784,1.11515,1793.2,1793.1,6.75447573]
[1746650707980,1.11521,1793.1,1793.0,7.44230227]
[1746650708181,1.94591,1793.1,1793.0,8.55758227]
[1746650708480,1.94591,1793.1,1793.0,10.94016989]
[1746650708681,1.94591,1793.1,1793.0,9.82488989]
[1746650709478,1.94591,1793.1,1793.0,2.38258762]
[1746650709673,0.8307,1793.1,1793.0,3.49786762]
[1746650709873,1.1151,1793.3,1793.0,17.74943762]
[1746650710085,5.6608,1793.5,1793.3,1.11507]
[1746650710385,1.6223,1793.4,1793.2,1.11511]
[1746650710578,2.73733,1793.4,1793.3,1.6381]
[1746650712091,2.73733,1793.4,1793.3,2.75319]
[1746650712486,2.73733,1793.4,1793.3,1.6381]
[1746650712789,2.73733,1793.4,1793.3,3.49706167]
[1746650713488,1.11515,1793.2,1793.1,1.11518]
[1746650713785,1.11515,1793.2,1793.1,0.74386028]
[1746650713986,1.11521,1793.1,1793.0,8.69403]
[1746650714185,1.11521,1793.1,1793.0,9.43798005]
[1746650714380,2.78763,1793.4,1793.1,1.11521]
[1746650714381,1.11519,1793.2,1793.1,1.11521]
[1746650714580,1.11519,1793.2,1793.1,1.85916005]
[1746650714981,1.11521,1793.1,1793.0,5.48622]
[1746650715287,1.11521,1793.1,1793.0,6.22967697]
[1746650715486,1.11521,1793.1,1793.0,9.43747697]
[1746650716891,1.11521,1793.1,1793.0,9.43739393]
[1746650718191,2.8624,1793.2,1793.1,1.11521]
[1746650718391,2.8624,1793.2,1793.1,1.85858393]
[1746650718593,2.8624,1793.2,1793.1,1.11521]
[1746650718795,2.8624,1793.2,1793.1,1.85873929]
[1746650718993,1.1152,1793.2,1793.1,1.85873929]
[1746650719290,1.1152,1793.2,1793.1,0.74352929]
[1746650719488,1.11521,1793.1,1793.0,4.32304]
[1746650719695,1.92731,1793.1,1793.0,5.06690213]
[1746650720495,1.92731,1793.1,1793.0,5.06658979]
[1746650721494,2.81641,1793.1,1793.0,5.06658979]
[1746650721892,2.81641,1793.1,1793.0,0.74354979]
[1746650722095,2.81641,1793.1,1793.0,1.85882979]
[1746650722393,2.81641,1793.1,1793.0,1.85934507]
[1746650723893,2.81641,1793.1,1793.0,0.74406507]
[1746650724191,1.11528,1793.0,1792.9,5.50329]
[1746650724389,2.81008,1793.0,1792.9,6.24711382]
[1746650724594,2.81008,1793.0,1792.9,6.24716382]
[1746650725495,2.81008,1793.0,1792.9,0.74382382]
[1746650725687,1.11534,1792.9,1792.8,4.32318]
[1746650725888,2.81012,1793.0,1792.9,1.11534]
[1746650726193,2.81012,1793.0,1792.9,1.85893169]
[1746650727898,2.81012,1793.0,1792.9,3.64713169]
[1746650728894,2.81012,1793.0,1792.9,2.53179169]
[1746650729701,2.81012,1793.0,1792.9,3.64713169]
[1746650731308,2.81012,1793.0,1792.9,2.53179169]
[1746650731607,2.81012,1793.0,1792.9,2.53172133]
[1746650731905,2.81012,1793.0,1792.9,3.64706133]
[1746650733409,2.81012,1793.0,1792.9,4.45563936]
[1746650735209,2.81012,1793.0,1792.9,3.71154]
[1746650735412,1.11532,1793.0,1792.9,4.4568432]
[1746650735616,1.7012,1793.1,1793.0,1.11528]
[1746650735802,1.6751,1793.2,1793.1,1.11521]
[1746650736004,2.7903,1793.2,1793.1,1.8605132]
[1746650736204,2.7903,1793.2,1793.1,3.5362132]
[1746650737116,2.7903,1793.2,1793.1,3.53639107]
[1746650739019,2.7903,1793.2,1793.1,3.53704217]
[1746650739620,6.06104,1793.3,1793.2,1.11515]
[1746650739819,1.98074,1793.3,1793.2,3.64888217]
[1746650740917,1.98074,1793.3,1793.2,3.6491559]
[1746650741519,3.61994,1793.3,1793.2,3.6491559]
[1746650745125,2.5048,1793.3,1793.2,3.6491559]
[1746650745325,3.2078,1793.7,1793.4,2.78758]
[1746650745518,4.4664,1793.8,1793.7,1.11484]
[1746650745718,1.11484,1793.7,1793.6,3.78155]
[1746650745914,2.82034,1793.7,1793.6,0.74600783]
[1746650746232,1.11503,1793.4,1793.3,10.46888]
[1746650746525,1.11503,1793.4,1793.3,11.21555171]
[1746650747120,3.65713,1793.4,1793.3,11.21555171]
[1746650747925,3.65713,1793.4,1793.3,11.95584341]
[1746650748121,3.65713,1793.4,1793.3,11.95621127]
[1746650748629,3.65713,1793.4,1793.3,11.21591957]
[1746650749530,3.65713,1793.4,1793.3,10.10083957]
[1746650749717,3.65713,1793.4,1793.3,11.21592957]
[1746650749922,3.65713,1793.4,1793.3,9.43092957]
[1746650750229,3.65713,1793.4,1793.3,9.43065007]
[1746650750528,3.65713,1793.4,1793.3,8.31556007]
[1746650751229,3.65713,1793.4,1793.3,9.43065007]
[1746650754431,3.65713,1793.4,1793.3,8.31556007]
[1746650756433,1.11515,1793.2,1793.1,4.36]
[1746650756728,1.11515,1793.2,1793.1,5.1066367]
[1746650756927,3.64625,1793.2,1793.1,5.1066367]
[1746650757125,1.11515,1793.2,1793.1,6.2218467]
[1746650757430,1.11515,1793.2,1793.1,7.9095467]
[1746650757619,1.11515,1793.2,1793.1,6.7943367]
[1746650757932,2.82715,1793.2,1793.1,0.7466367]
[1746650758732,1.11546,1792.7,1792.6,7.44230227]
[1746650759030,1.11546,1792.7,1792.6,10.0245873]
[1746650759235,1.11544,1792.8,1792.7,1.11541]
[1746650759532,2.5954,1792.9,1792.7,6.75701369]
[1746650759734,1.11531,1793.0,1792.9,1.11528]
[1746650759934,1.11531,1793.0,1792.9,1.86138369]
[1746650760138,1.11531,1793.0,1792.9,2.51920369]
[1746650760731,1.11531,1793.0,1792.9,1.7731]
[1746650760933,2.81521,1793.0,1792.9,3.6337523]
[1746650761233,2.81521,1793.0,1792.9,2.5184123]
[1746650761435,2.81521,1793.0,1792.9,3.6337523]
[1746650761637,2.81521,1793.0,1792.9,3.63430708]
[1746650762030,2.81521,1793.0,1792.9,2.51900237]
[1746650762534,2.81521,1793.0,1792.9,3.63434237]
[1746650762835,2.81521,1793.0,1792.9,2.51900237]
[1746650763038,2.81521,1793.0,1792.9,3.63434237]
[1746650763237,2.81521,1793.0,1792.9,0.74590237]
[1746650763436,1.11534,1792.9,1792.8,4.361]
[1746650763632,2.75544,1792.9,1792.8,6.22226983]
[1746650764334,2.75544,1792.9,1792.8,6.22245423]
[1746650764532,2.75544,1792.9,1792.8,7.86345423]
[1746650764729,2.75544,1792.9,1792.8,2.38705423]
[1746650764930,2.75544,1792.9,1792.8,3.50245423]
[1746650765437,2.75544,1792.9,1792.8,2.38705423]
[1746650765636,2.75544,1792.9,1792.8,3.50245423]
[1746650766036,2.75544,1792.9,1792.8,3.50182214]
[1746650767740,2.75544,1792.9,1792.8,2.38642214]
[1746650767940,2.75544,1792.9,1792.8,1.641]
[1746650768141,1.1154,1792.8,1792.7,1.11545]
[1746650768344,4.5922,1792.8,1792.7,0.74514548]
[1746650769041,4.5922,1792.8,1792.7,1.86060548]
[1746650769342,1.11546,1792.7,1792.6,10.34279]
[1746650769542,1.11546,1792.7,1792.6,11.08734305]
[1746650769743,1.7482,1792.8,1792.7,1.11546]
[1746650769942,2.83358,1792.9,1792.8,1.1154]
[1746650770143,2.83358,1792.9,1792.8,2.8639]
[1746650770939,1.7104,1793.0,1792.9,1.11534]
[1746650771141,1.11516,1793.3,1793.2,1.11512]
[1746650771641,1.11516,1793.3,1793.2,1.85977537]
[1746650772043,1.11516,1793.3,1793.2,1.11512]
[1746650772251,1.11515,1793.2,1793.1,2.86366]
[1746650772448,1.11515,1793.2,1793.1,3.60828524]
[1746650773636,1.11515,1793.2,1793.1,6.81687907]
[1746650775750,1.11515,1793.2,1793.1,6.81693842]
[1746650776049,2.75724,1793.3,1793.2,1.11515]
[1746650776243,2.75724,1793.3,1793.2,2.85125]
[1746650776442,2.75724,1793.3,1793.2,3.5964423]
[1746650776938,2.78724,1793.7,1793.2,9.6300423]
[1746650777147,1.11495,1793.6,1793.5,1.11491]
[1746650777443,1.11495,1793.6,1793.5,1.7361]
[1746650777647,2.78765,1793.6,1793.5,1.7361]
[1746650778850,2.78765,1793.6,1793.5,2.85107]
[1746650779350,1.11495,1793.6,1793.5,2.85107]
[1746650780448,2.89245,1793.6,1793.5,2.85107]
[1746650784954,1.11495,1793.6,1793.5,2.85107]
[1746650786254,2.81875,1793.6,1793.5,2.85107]
[1746650787857,1.11488,1793.7,1793.6,1.1149]
[1746650788057,1.11488,1793.7,1793.6,3.7573]
[1746650788356,1.11488,1793.7,1793.6,44.5573]
[1746650788751,2.82788,1793.7,1793.6,44.5573]
[1746650791851,1.713,1793.7,1793.6,44.5573]
[1746650792057,2.77191,1793.8,1793.7,1.11484]
[1746650792257,2.77191,1793.8,1793.7,2.74454]
[1746650793858,4.49741,1793.8,1793.7,2.74454]
[1746650794258,4.49741,1793.8,1793.7,1.6297]
[1746650794460,1.1149,1793.6,1793.5,1.11494]
[1746650794856,2.8404,1793.6,1793.5,1.11494]
[1746650795856,2.8404,1793.6,1793.5,2.83354]
[1746650797761,2.77194,1793.8,1793.7,1.11484]
[1746650798261,2.77194,1793.8,1793.7,2.82004]
[1746650798657,4.49944,1793.8,1793.7,2.82004]
[1746650800363,4.49944,1793.8,1793.7,3.56752994]
[1746650800564,4.49944,1793.8,1793.7,2.82004]
[1746650803261,3.3846,1793.8,1793.7,2.82004]
[1746650803457,3.2078,1794.0,1793.7,2.82004]
[1746650803458,1.1147,1794.0,1793.9,1.11465]
[1746650803856,1.1147,1794.0,1793.9,2.79515]
[1746650804052,1.96081,1794.1,1794.0,1.11465]
[1746650804260,2.5615,1794.3,1794.0,3.26990527]
[1746650804466,2.5218,1794.3,1794.2,1.11453]
[1746650804662,13.11692572,1794.5,1794.4,1.11441]
[1746650804862,11.11662572,1794.5,1794.4,6.22099217]
[1746650805263,11.11662572,1794.5,1794.4,7.96919217]
[1746650805459,11.11662572,1794.5,1794.4,7.22161]
[1746650805768,3.68083,1794.6,1794.5,1.11434]
[1746650806570,2.5665,1794.6,1794.5,1.11434]
[1746650806763,3.68078,1794.6,1794.5,2.86254]
[1746650806962,3.68078,1794.6,1794.5,1.7482]
[1746650807367,3.68078,1794.6,1794.4,4.359]
[1746650807368,1.11434,1794.5,1794.4,4.359]
[1746650807570,2.83464,1794.5,1794.4,4.359]
[1746650807868,2.83464,1794.5,1794.4,5.47341]
[1746650808371,1.7203,1794.5,1794.4,5.47341]
[1746650808561,1.7203,1794.5,1794.4,7.19341]
[1746650808757,0.8462,1794.6,1794.5,1.11434]
[1746650808969,0.8462,1794.6,1794.5,2.83434]
[1746650809269,1.96048,1794.6,1794.5,2.83434]
[1746650809569,3.61768,1794.6,1794.5,2.83434]
[1746650809971,1.11411,1794.9,1794.8,1.11411]
[1746650810171,2.5503,1794.9,1794.8,1.11416]
[1746650810670,2.7848,1795.2,1794.8,1.11416]
[1746650810671,1.11395,1795.2,1795.1,1.11395]
[1746650810874,3.66425,1795.2,1795.1,1.11395]
[1746650811167,2.5503,1795.2,1795.1,1.11395]
[1746650811365,2.5503,1795.2,1795.0,2.80138]
[1746650811674,3.66421,1795.2,1795.1,1.6874]
[1746650813073,1.11397,1795.1,1795.0,46.27102]
[1746650813270,1.11397,1795.1,1795.0,47.95842]
[1746650813271,2.88757,1795.1,1795.0,47.95842]
[1746650813475,2.88757,1795.1,1795.0,45.157]
[1746650813968,1.11403,1795.0,1794.9,5.47008]
[1746650814171,2.88763,1795.0,1794.9,8.67788]
[1746650814370,2.88763,1795.0,1794.9,49.47788]
[1746650815070,2.88763,1795.0,1794.9,45.12188]
[1746650815368,2.88763,1795.0,1794.9,49.47788]
[1746650817073,1.7736,1795.0,1794.9,46.27008]
[1746650817367,1.7736,1795.0,1794.9,49.47788]
[1746650817969,1.11402,1795.1,1795.0,1.11403]
[1746650818170,1.11402,1795.1,1795.0,2.84483]
[1746650818370,1.11402,1795.1,1795.0,1.7308]
[1746650818575,2.79922,1795.1,1795.0,1.7308]
[1746650819268,2.79922,1795.1,1795.0,2.84483]
[1746650819872,1.11403,1795.0,1794.9,48.3638]
[1746650820070,3.62313,1795.0,1794.9,45.1219]
[1746650821070,0.8931,1795.2,1794.9,45.1219]
[1746650821272,1.11368,1795.6,1795.5,1.1137]
[1746650821472,1.11366,1795.6,1795.5,3.2078]
[1746650821966,2.77746,1795.6,1795.5,3.2078]
[1746650822271,1.11372,1795.5,1795.4,6.124]
[1746650822471,2.77752,1795.5,1795.4,4.356]
[1746650822970,1.11385,1795.3,1795.2,1.768]
[1746650823158,1.6638,1795.4,1795.1,5.46892]
[1746650823358,0.8721,1795.2,1795.1,5.46892]
[1746650824472,0.8721,1795.2,1795.1,7.18282]
[1746650825966,0.8721,1795.2,1795.1,1.11392]
[1746650826171,1.11411,1794.9,1794.8,1.11413]
[1746650826365,1.11414,1794.9,1794.8,1.11415]
[1746650826566,1.7033,1795.1,1794.7,40.8]
[1746650826770,1.11405,1795.0,1794.9,1.11404]
[1746650826969,1.11405,1795.0,1794.9,2.76244]
[1746650827468,1.1141,1794.9,1794.8,4.32193]
[1746650827669,2.8174,1794.9,1794.8,3.2078]
[1746650830473,1.11416,1794.8,1794.7,41.91422]
[1746650830673,3.68066,1794.8,1794.7,41.91422]
[1746650831067,3.68066,1794.8,1794.7,45.12202]
[1746650831681,2.5665,1794.8,1794.7,45.12202]
[1746650831875,1.96678,1795.0,1794.9,1.1141]
[1746650832074,1.11396,1795.2,1794.9,3.2078]
[1746650832375,1.11397,1795.1,1795.0,3.76959]
[1746650832570,1.11397,1795.1,1795.0,1.99199]
[1746650833373,2.81561,1795.3,1795.2,1.11391]
[1746650834781,1.7017,1795.3,1795.2,1.11391]
[1746650835075,4.32163,1795.4,1795.3,1.11385]
[1746650836079,3.3783,1795.5,1795.2,4.355]
[1746650836276,3.2078,1795.6,1795.3,0.7443548]
[1746650836578,4.32152,1795.6,1795.5,1.11372]
[1746650836777,1.11372,1795.5,1795.4,1.94364]
[1746650836979,0.8176,1795.7,1795.4,1.57433636]
[1746650837175,1.93125,1795.7,1795.6,1.11366]
[1746650837480,1.11365,1795.7,1795.6,1.11366]
[1746650837674,2.77365,1795.7,1795.6,1.11366]
[1746650838079,1.11365,1795.7,1795.6,1.85826737]
[1746650838379,1.11366,1795.6,1795.5,8.72748]
[1746650838572,1.11366,1795.6,1795.5,9.47286066]
[1746650839182,2.77366,1795.7,1795.6,1.11366]
[1746650839380,2.77366,1795.7,1795.6,1.85923845]
[1746650839680,1.93009,1795.8,1795.7,1.1136]
[1746650839881,1.93009,1795.8,1795.7,1.85907076]
[1746650840580,3.59959,1795.8,1795.7,1.1136]
[1746650841783,1.11365,1795.7,1795.6,1.11361]
[1746650841976,1.11365,1795.7,1795.5,7.6138]
[1746650841977,1.6238,1795.7,1795.5,7.6138]
[1746650842183,1.11366,1795.6,1795.5,8.72747]
[1746650842480,1.11366,1795.6,1795.5,9.47257472]
[1746650842685,1.11366,1795.6,1795.5,8.72747]
[1746650844480,1.6238,1795.7,1795.5,8.72747]
[1746650844683,2.73745,1795.7,1795.6,1.11366]
[1746650845287,2.73745,1795.7,1795.6,2.85456]
[1746650846891,1.11365,1795.7,1795.6,2.85456]
[1746650847889,2.89035,1795.7,1795.6,2.85456]
[1746650848591,1.7767,1795.7,1795.6,2.85456]
[1746650848784,1.7767,1795.7,1795.6,3.71206]
[1746650848985,1.93009,1795.8,1795.7,1.1136]
[1746650849185,1.93009,1795.8,1795.7,2.787]
[1746650849687,0.8165,1795.8,1795.7,2.787]
[1746650849892,0.8137,1796.0,1795.9,1.11348]
[1746650850088,1.11341,1796.1,1796.0,1.11341]
[1746650850293,4.5459,1796.2,1796.1,1.11335]
[1746650850987,4.5459,1796.2,1796.1,2.75685]
[1746650852303,4.5459,1796.2,1796.0,41.91337]
[1746650852304,1.11335,1796.1,1796.0,41.91337]
[1746650852490,2.87845,1796.1,1796.0,40.8]
[1746650852690,1.11348,1795.9,1795.8,7.16099]
[1746650852890,1.11348,1795.9,1795.8,4.404]
[1746650853092,1.11348,1795.9,1795.8,5.51754]
[1746650853300,1.11348,1795.9,1795.8,46.31754]
[1746650853500,1.98948,1795.9,1795.8,46.31754]
[1746650853798,2.78385,1795.8,1795.6,5.51762]
[1746650853998,1.11366,1795.7,1795.6,4.404]
[1746650854201,1.11379,1795.4,1795.3,4.32162]
[1746650854587,1.11379,1795.4,1795.3,1.11382]
[1746650854995,3.69449,1795.4,1795.3,1.11382]
[1746650855999,0.8744,1795.5,1795.4,1.11379]
[1746650856399,1.11371,1795.6,1795.5,1.11372]
[1746650856795,3.69435,1795.7,1795.6,1.11366]
[1746650859702,1.11366,1795.6,1795.5,6.05119]
[1746650859899,1.11372,1795.5,1795.4,1.92585]
[1746650860100,1.11372,1795.5,1795.4,1.11375]
[1746650860304,1.11379,1795.4,1795.3,4.32159]
[1746650860600,1.11391,1795.2,1795.1,7.1088]
[1746650860795,1.11391,1795.2,1795.1,11.5138]
[1746650861196,1.11403,1795.1,1795.0,1.11403]
[1746650861401,1.11403,1795.1,1794.9,1.11403]
[1746650861402,1.11407,1795.0,1794.9,1.11403]
[1746650861602,2.77032,1795.1,1795.0,1.11403]
[1746650862009,1.11403,1795.0,1794.9,2.73865]
[1746650862212,2.77033,1795.0,1794.9,3.48316889]
[1746650862417,2.77033,1795.0,1794.9,2.73865]
[1746650862612,1.6563,1795.0,1794.9,2.73865]
[1746650862813,1.11397,1795.2,1795.1,1.11392]
[1746650864011,1.11397,1795.1,1795.0,2.73858]
[1746650864807,2.83706,1795.2,1795.1,1.11397]
[1746650867125,1.1139,1795.3,1795.2,1.11386]
[1746650867622,3.63854,1795.4,1795.3,1.11385]
[1746650870321,5.99193,1795.7,1795.2,1.7819]
[1746650870522,1.11385,1795.3,1795.2,4.32164]
[1746650870821,1.11385,1795.3,1795.2,1.11384]
[1746650871421,2.79364,1795.4,1795.3,1.11385]
[1746650876124,1.11385,1795.3,1795.2,2.75016]
[1746650876313,2.85455,1795.3,1795.2,1.11386]
[1746650876518,2.85455,1795.3,1795.1,3.2078]
[1746650876519,1.11391,1795.2,1795.1,1.11393]
[1746650876819,2.85461,1795.2,1795.1,1.11393]
[1746650877428,0.8925,1795.3,1795.0,2.78502]
[1746650877630,1.11395,1795.2,1795.1,1.11391]
[1746650877927,1.11395,1795.2,1795.1,2.75491]
[1746650878925,2.76035,1795.2,1795.1,2.75491]
[1746650881427,2.76035,1795.2,1795.1,3.50082943]
[1746650881628,2.0064,1795.3,1795.2,1.11391]
[1746650881927,2.0064,1795.3,1795.2,2.83521]
[1746650882620,2.0064,1795.3,1795.2,3.58172922]
[1746650883626,3.7141,1795.3,1795.2,2.83521]
[1746650884534,3.7141,1795.3,1795.2,1.7213]
[1746650885329,2.78479,1795.2,1794.9,3.2078]
[1746650885521,1.11403,1795.0,1794.9,5.95696]
[1746650885723,1.11403,1795.0,1794.9,6.70386528]
[1746650886034,1.92212,1795.1,1795.0,1.11403]
[1746650886229,1.92212,1795.1,1795.0,3.49603528]
[1746650886529,3.70952,1795.1,1795.0,3.49603528]
[1746650887231,3.70952,1795.1,1795.0,3.49566205]
[1746650888040,1.11402,1795.1,1795.0,3.49566205]
[1746650888237,1.11402,1795.1,1795.0,2.38163205]
[1746650888534,2.74322,1795.1,1795.0,0.74653205]
[1746650888729,1.1141,1794.9,1794.8,40.8]
[1746650889031,1.1141,1794.9,1794.8,0.7470905]
[1746650889434,3.6347,1794.9,1794.8,41.5470905]
[1746650889631,4.39,1795.3,1794.8,49.7548905]
[1746650889632,2.78478,1795.3,1794.8,49.7548905]
[1746650889835,1.11396,1795.2,1795.1,1.11391]
[1746650890132,1.11396,1795.2,1795.1,3.5502005]
[1746650890334,2.74316,1795.2,1795.1,3.5502005]
[1746650890929,1.11396,1795.2,1795.1,3.5498008]
[1746650891831,2.8993,1795.3,1795.2,1.11391]
[1746650892037,2.8993,1795.3,1795.2,3.5965008]
[1746650892243,2.8993,1795.3,1795.2,3.59758556]
[1746650892437,2.8993,1795.3,1795.2,2.84981]
[1746650893239,2.8993,1795.3,1795.2,3.59762817]
[1746650893432,2.8993,1795.3,1795.2,3.59762823]
[1746650893835,2.8993,1795.3,1795.2,2.84981]
[1746650894041,2.8993,1795.3,1795.2,3.59776149]
[1746650895745,2.8993,1795.3,1795.2,3.59774113]
[1746650896836,2.8993,1795.3,1795.2,2.48383113]
[1746650897044,1.11397,1795.2,1795.1,1.11396]
[1746650897242,2.79577,1795.2,1795.1,1.86191946]
[1746650897637,2.79577,1795.2,1795.1,3.55462077]
[1746650898045,2.79577,1795.2,1795.1,1.86192077]
[1746650898339,1.6818,1795.2,1794.9,7.19674]
[1746650898646,2.79577,1795.1,1795.0,0.74763561]
[1746650899437,1.11403,1795.0,1794.9,7.19674]
[1746650899640,3.64823,1795.0,1794.9,7.94428223]
[1746650901047,3.64823,1795.0,1794.9,0.74754223]
[1746650901444,1.1141,1794.9,1794.8,4.32196]
[1746650901642,3.6704,1794.9,1794.8,5.06876873]
[1746650902046,3.6704,1794.9,1794.8,3.95460873]
[1746650902451,3.6704,1794.9,1794.8,3.2078]
[1746650904145,1.11416,1794.8,1794.7,5.50319]
[1746650904349,2.75846,1794.8,1794.7,6.24912659]
[1746650904750,1.11416,1794.8,1794.7,6.24912659]
[1746650905044,1.11396,1795.2,1795.1,1.11391]
[1746650905553,1.11397,1795.1,1795.0,2.7308]
[1746650906349,1.11397,1795.1,1795.0,3.47754295]
[1746650906742,1.11397,1795.1,1795.0,3.47755439]
[1746650908552,1.11397,1795.1,1795.0,3.4776312]
[1746650908950,1.11397,1795.1,1795.0,2.7308]
[1746650909252,1.1141,1795.0,1794.9,1.11405]
[1746650909452,3.6993,1795.0,1794.9,1.86036471]
[1746650909842,3.6993,1795.0,1794.9,3.48626471]
[1746650910352,3.6993,1795.0,1794.9,3.48604021]
[1746650911352,1.1141,1794.9,1794.8,1.11413]
[1746650911549,3.6699,1794.9,1794.8,1.86031241]
[1746650911847,3.6699,1794.9,1794.8,0.74618241]
[1746650912056,3.6699,1794.9,1794.8,1.86036284]
[1746650912253,3.6699,1794.9,1794.8,1.86035906]
[1746650912448,3.6699,1794.9,1794.8,1.11416]
[1746650913355,1.11416,1794.8,1794.7,5.94789]
[1746650913545,2.84826,1794.8,1794.7,5.0675411]
[1746650915554,2.84826,1794.8,1794.7,6.7934411]
[1746650915752,2.84826,1794.8,1794.7,0.7455511]
[1746650915955,1.11422,1794.7,1794.6,5.50324]
[1746650916155,3.74752,1794.7,1794.6,6.24845121]
[1746650916359,3.74752,1794.7,1794.6,5.50324]
[1746650916953,3.74752,1794.7,1794.5,42.5259]
[1746650917160,1.11434,1794.5,1794.4,5.50335]
[1746650917454,1.11434,1794.5,1794.4,6.24840724]
[1746650917655,1.95204,1794.5,1794.4,47.04767488]
[1746650917854,1.95204,1794.5,1794.4,46.30335]
[1746650918652,1.95204,1794.5,1794.4,1.11435]
[1746650919052,1.95204,1794.5,1794.4,2.86325]
[1746650919257,0.8377,1794.5,1794.4,43.66325]
[1746650919456,2.89093,1794.6,1794.5,1.11434]
[1746650919657,2.89093,1794.6,1794.5,2.86324]
[1746650926764,1.97095,1794.7,1794.6,1.11428]
[1746650927068,1.97095,1794.7,1794.6,2.90088]
[1746650927365,1.11425,1794.7,1794.6,2.90088]
[1746650927572,5.1375,1794.8,1794.7,1.11422]
[1746650927765,1.11413,1794.9,1794.8,1.1141]
[1746650927957,1.11413,1794.9,1794.8,2.8403]
[1746650928164,4.40396,1795.0,1794.9,1.1141]
[1746650928472,11.01202,1795.1,1795.0,1.11403]
[1746650928867,12.64442,1795.1,1795.0,1.11403]
[1746650929971,12.64442,1795.1,1795.0,1.92273]
[1746650933279,2.74642,1795.1,1795.0,1.92273]
[1746650934680,2.74642,1795.1,1795.0,42.72273]
[1746650935184,2.74642,1795.1,1795.0,0.8087]
[1746650935378,1.11403,1795.0,1794.9,2.8403]
[1746650935675,2.90293,1795.0,1794.9,2.8403]
[1746650937484,1.1141,1794.9,1794.8,5.48612]
[1746650937786,3.7285,1794.9,1794.8,5.48616]
[1746650940883,1.11407,1795.0,1794.9,1.11404]
[1746650941077,1.11407,1795.0,1794.9,3.7184]